fUSD/lending_fUSD_20250524
["ID","MTS","AMOUNT","RATE_DAILY","PERIOD"]
[362251566,1748119841419,-1446.21,0.00019369,2]
[362251567,1748119841429,-420.0,0.00019369,2]
[362251568,1748119841438,-5483.03,0.00019369,2]
[362251569,1748119841447,-485.89,0.00019369,2]
[362251570,1748119841457,-739.18,0.00019369,2]
[362251572,1748119841465,-420.0,0.00019369,2]
[362251574,1748119841474,-420.0,0.00019369,2]
[362251575,1748119841484,-420.0,0.00019369,2]
[362251576,1748119841493,-420.0,0.00019369,2]
[362251577,1748119841502,-420.0,0.00019369,2]
[362251578,1748119841511,-453.8,0.00019369,2]
[362251579,1748119841520,-1702.6,0.00019369,2]
[362251580,1748119841530,-420.0,0.00019369,2]
[362251581,1748119841539,-500.0,0.00019373,2]
[362251582,1748119841548,-500.0,0.00019373,2]
[362251583,1748119841557,-500.0,0.00019373,2]
[362251584,1748119841569,-500.74291645,0.00019373,2]
[362251585,1748119841580,-500.0,0.00019373,2]
[362251586,1748119841590,-401.30575921,0.00019379,2]
[362251587,1748119841600,-282.02948676,0.00019397,2]
[362251588,1748119841611,-420.0,0.00019397,2]
[362251589,1748119841620,-420.0,0.00019397,2]
[362251590,1748119841630,-420.0,0.00019397,2]
[362251591,1748119841639,-426.85,0.00019397,2]
[362251592,1748119841648,-642.39,0.00019397,2]
[362251593,1748119841658,-420.0,0.00019397,2]
[362251594,1748119841666,-420.0,0.00019397,2]
[362251595,1748119841677,-420.0,0.00019397,2]
[362251596,1748119841686,-725.46,0.00019397,2]
[362251597,1748119841696,-3315.14,0.00019397,2]
[362251598,1748119841707,-1884.18,0.00019397,2]
[362251599,1748119841720,-3932.93,0.00019397,2]
[362251600,1748119841731,-637.73,0.00019397,2]
[362251601,1748119841743,-1470.84,0.00019397,2]
[362251602,1748119841752,-852.92,0.00019397,2]
[362251603,1748119841762,-420.0,0.00019397,2]
[362251604,1748119841772,-512.52,0.00019397,2]
[362251605,1748119841781,-3769.84,0.00019397,2]
[362251606,1748119841790,-420.0,0.00019397,2]
[362251607,1748119841800,-420.0,0.00019397,2]
[362251608,1748119841810,-420.0,0.00019397,2]
[362251609,1748119841821,-859.68,0.00019397,2]
[362251610,1748119841831,-61518.15,0.00019397,2]
[362251611,1748119841840,-850.88,0.00019397,2]
[362251612,1748119841851,-1069.16,0.00019397,2]
[362251613,1748119841861,-420.0,0.00019397,2]
[362251614,1748119841871,-455.13,0.00019397,2]
[362251615,1748119841881,-420.0,0.00019397,2]
[362251616,1748119841898,-1817.39,0.00019397,2]
[362251617,1748119841908,-850.0,0.00019397,2]
[362251618,1748119841918,-420.0,0.00019397,2]
[362251619,1748119841927,-667.87,0.00019397,2]
[362251620,1748119841936,-420.0,0.00019397,2]
[362251621,1748119841946,-420.0,0.00019397,2]
[362251622,1748119841955,-420.0,0.00019397,2]
[362251623,1748119841965,-420.0,0.00019397,2]
[362251624,1748119841974,-1493.3,0.00019397,2]
[362251625,1748119841983,-1764.72,0.00019397,2]
[362251626,1748119841992,-528.87,0.00019397,2]
[362251627,1748119842002,-420.0,0.00019397,2]
[362251628,1748119842012,-1446.21,0.00019397,2]
[362251629,1748119842022,-420.0,0.00019397,2]
[362251630,1748119842032,-5483.03,0.00019397,2]
[362251631,1748119842041,-485.89,0.00019397,2]
[362251632,1748119842051,-739.18,0.00019397,2]
[362251633,1748119842060,-420.0,0.00019397,2]
[362251634,1748119842072,-420.0,0.00019397,2]
[362251635,1748119842082,-420.0,0.00019397,2]
[362251636,1748119842091,-420.0,0.00019397,2]
[362251637,1748119842101,-420.0,0.00019397,2]
[362251638,1748119842111,-453.8,0.00019397,2]
[362251639,1748119842121,-1702.6,0.00019397,2]
[362251640,1748119842131,-420.0,0.00019397,2]
[362251641,1748119842141,-5510.78582357,0.00019403,2]
[362251642,1748119842151,-500.0,0.00019423,2]
[362251644,1748119842162,-502.99766792,0.00019423,2]
[362251645,1748119842172,-420.0,0.00019424,2]
[362251646,1748119842182,-420.0,0.00019424,2]
[362251647,1748119842192,-426.85,0.00019424,2]
[362251648,1748119842203,-642.39,0.00019424,2]
[362251649,1748119842213,-420.0,0.00019424,2]
[362251650,1748119842223,-420.0,0.00019424,2]
[362251651,1748119842234,-287.6,0.00019424,2]
[362251652,1748119842245,-725.46,0.00019424,2]
[362251653,1748119842254,-3315.14,0.00019424,2]
[362251654,1748119842264,-1884.18,0.00019424,2]
[362251655,1748119842274,-3932.93,0.00019424,2]
[362251656,1748119842284,-637.73,0.00019424,2]
[362251657,1748119842294,-1470.84,0.00019424,2]
[362251658,1748119842304,-852.92,0.00019424,2]
[362251659,1748119842315,-420.0,0.00019424,2]
[362251660,1748119842325,-512.52,0.00019424,2]
[362251661,1748119842335,-3769.84,0.00019424,2]
[362251662,1748119842346,-420.0,0.00019424,2]
[362251663,1748119842358,-420.0,0.00019424,2]
[362251665,1748119842369,-420.0,0.00019424,2]
[362251666,1748119842379,-859.68,0.00019424,2]
[362251667,1748119842390,-61518.15,0.00019424,2]
[362251668,1748119842400,-850.88,0.00019424,2]
[362251669,1748119842411,-1069.16,0.00019424,2]
[362251670,1748119842420,-420.0,0.00019424,2]
[362251671,1748119842432,-455.13,0.00019424,2]
[362251672,1748119842444,-420.0,0.00019424,2]
[362251673,1748119842455,-1817.39,0.00019424,2]
[362251674,1748119842466,-850.0,0.00019424,2]
[362251675,1748119842478,-667.87,0.00019424,2]
[362251676,1748119842488,-420.0,0.00019424,2]
[362251677,1748119842499,-420.0,0.00019424,2]
[362251678,1748119842509,-420.0,0.00019424,2]
[362251679,1748119842521,-420.0,0.00019424,2]
[362251680,1748119842531,-1493.3,0.00019424,2]
[362251681,1748119842541,-1764.72,0.00019424,2]
[362251682,1748119842551,-528.87,0.00019424,2]
[362251683,1748119842560,-420.0,0.00019424,2]
[362251684,1748119842573,-1446.21,0.00019424,2]
[362251685,1748119842583,-420.0,0.00019424,2]
[362251686,1748119842595,-5483.03,0.00019424,2]
[362251687,1748119842604,-485.89,0.00019424,2]
[362251688,1748119842614,-739.18,0.00019424,2]
[362251689,1748119842624,-420.0,0.00019424,2]
[362251690,1748119842635,-420.0,0.00019424,2]
[362251691,1748119842645,-420.0,0.00019424,2]
[362251692,1748119842656,-420.0,0.00019424,2]
[362251693,1748119842666,-264.9127669,0.00019424,2]
[362251694,1748119842677,-453.8,0.00019424,2]
[362251695,1748119842689,-1702.6,0.00019424,2]
[362251696,1748119842700,-420.0,0.00019424,2]
[362251697,1748119842711,-3130.60806298,0.00019443,2]
[362251698,1748119842724,-420.0,0.00019452,2]
[362251699,1748119842735,-420.0,0.00019452,2]
[362251700,1748119842745,-426.85,0.00019452,2]
[362251701,1748119842757,-642.39,0.00019452,2]
[362251702,1748119842768,-420.0,0.00019452,2]
[362251703,1748119842778,-420.0,0.00019452,2]
[362251704,1748119842790,-725.46,0.00019452,2]
[362251705,1748119842801,-3315.14,0.00019452,2]
[362251706,1748119842812,-1884.18,0.00019452,2]
[362251707,1748119842823,-3932.93,0.00019452,2]
[362251708,1748119842833,-637.73,0.00019452,2]
[362251709,1748119842844,-1470.84,0.00019452,2]
[362251710,1748119842855,-852.92,0.00019452,2]
[362251711,1748119842865,-420.0,0.00019452,2]
[362251712,1748119842876,-512.52,0.00019452,2]
[362251714,1748119842886,-3769.84,0.00019452,2]
[362251716,1748119842897,-420.0,0.00019452,2]
[362251718,1748119842908,-420.0,0.00019452,2]
[362251720,1748119842919,-420.0,0.00019452,2]
[362251721,1748119842929,-859.68,0.00019452,2]
[362251722,1748119842939,-61518.15,0.00019452,2]
[362251723,1748119842953,-850.88,0.00019452,2]
[362251724,1748119842964,-1069.16,0.00019452,2]
[362251725,1748119842975,-420.0,0.00019452,2]
[362251726,1748119842987,-455.13,0.00019452,2]
[362251727,1748119842999,-420.0,0.00019452,2]
[362251728,1748119843010,-1817.39,0.00019452,2]
[362251729,1748119843021,-850.0,0.00019452,2]
[362251730,1748119843031,-667.87,0.00019452,2]
[362251731,1748119843042,-420.0,0.00019452,2]
[362251732,1748119843052,-420.0,0.00019452,2]
[362251733,1748119843063,-420.0,0.00019452,2]
[362251734,1748119843074,-420.0,0.00019452,2]
[362251735,1748119843084,-1493.3,0.00019452,2]
[362251736,1748119843094,-1764.72,0.00019452,2]
[362251737,1748119843104,-528.87,0.00019452,2]
[362251738,1748119843115,-420.0,0.00019452,2]
[362251739,1748119843126,-1446.21,0.00019452,2]
[362251740,1748119843137,-374.51085222,0.00019452,2]
[362251741,1748119843147,-5483.03,0.00019452,2]
[362251742,1748119843158,-485.89,0.00019452,2]
[362251743,1748119843169,-739.18,0.00019452,2]
[362251744,1748119843179,-420.0,0.00019452,2]
[362251745,1748119843190,-420.0,0.00019452,2]
[362251746,1748119843200,-420.0,0.00019452,2]
[362251747,1748119843211,-420.0,0.00019452,2]
[362251748,1748119843221,-453.8,0.00019452,2]
[362251749,1748119843231,-1702.6,0.00019452,2]
[362251751,1748119843242,-420.0,0.00019452,2]
[362251752,1748119843252,-401.30575916,0.00019466,2]
[362251753,1748119843263,-420.0,0.00019479,2]
[362251754,1748119843273,-420.0,0.00019479,2]
[362251755,1748119843284,-426.85,0.00019479,2]
[362251756,1748119843294,-642.39,0.00019479,2]
[362251757,1748119843304,-509.57170752,0.00019479,2]
[362251758,1748119843315,-420.0,0.00019479,2]
[362251759,1748119843326,-725.46,0.00019479,2]
[362251760,1748119843337,-3315.14,0.00019479,2]
[362251761,1748119843347,-1884.18,0.00019479,2]
[362251762,1748119843357,-3932.93,0.00019479,2]
[362251763,1748119843369,-637.73,0.00019479,2]
[362251764,1748119843383,-1470.84,0.00019479,2]
[362251765,1748119843395,-852.92,0.00019479,2]
[362251766,1748119843408,-420.0,0.00019479,2]
[362251767,1748119843422,-512.52,0.00019479,2]
[362251768,1748119843435,-3769.84,0.00019479,2]
[362251769,1748119843446,-420.0,0.00019479,2]
[362251770,1748119843457,-420.0,0.00019479,2]
[362251771,1748119843468,-420.0,0.00019479,2]
[362251772,1748119843480,-859.68,0.00019479,2]
[362251773,1748119843493,-61518.15,0.00019479,2]
[362251774,1748119843506,-850.88,0.00019479,2]
[362251775,1748119843519,-1069.16,0.00019479,2]
[362251776,1748119843531,-420.0,0.00019479,2]
[362251777,1748119843544,-455.13,0.00019479,2]
[362251778,1748119843557,-420.0,0.00019479,2]
[362251779,1748119843571,-1817.39,0.00019479,2]
[362251780,1748119843584,-850.0,0.00019479,2]
[362251781,1748119843597,-667.87,0.00019479,2]
[362251782,1748119843611,-420.0,0.00019479,2]
[362251783,1748119843622,-540.73113365,0.00019479,2]
[362251784,1748119843633,-420.0,0.00019479,2]
[362251785,1748119843643,-420.0,0.00019479,2]
[362251786,1748119843656,-1493.3,0.00019479,2]
[362251787,1748119843667,-1764.72,0.00019479,2]
[362251788,1748119843680,-528.87,0.00019479,2]
[362251789,1748119843692,-420.0,0.00019479,2]
[362251790,1748119843705,-1446.21,0.00019479,2]
[362251791,1748119843716,-5483.03,0.00019479,2]
[362251792,1748119843730,-485.89,0.00019479,2]
[362251793,1748119843742,-739.18,0.00019479,2]
[362251794,1748119843755,-420.0,0.00019479,2]
[362251795,1748119843768,-420.0,0.00019479,2]
[362251796,1748119843780,-420.0,0.00019479,2]
[362251797,1748119843792,-420.0,0.00019479,2]
[362251798,1748119843808,-453.8,0.00019479,2]
[362251799,1748119843822,-1702.6,0.00019479,2]
[362251800,1748119843834,-420.0,0.00019479,2]
[362251801,1748119843846,-5510.78582357,0.00019502,2]
[362251802,1748119843857,-158.37012829,0.00019503,2]
[362251803,1748119843869,-500.0,0.00019505,2]
[362251804,1748119843881,-420.0,0.00019506,2]
[362251805,1748119843892,-420.0,0.00019506,2]
[362251806,1748119843904,-426.85,0.00019506,2]
[362251807,1748119843915,-642.39,0.00019506,2]
[362251808,1748119843928,-420.0,0.00019506,2]
[362251809,1748119843941,-725.46,0.00019506,2]
[362251810,1748119843952,-3315.14,0.00019506,2]
[362251811,1748119843963,-1884.18,0.00019506,2]
[362251812,1748119843974,-3932.93,0.00019506,2]
[362251813,1748119843986,-637.73,0.00019506,2]
[362251814,1748119843996,-1470.84,0.00019506,2]
[362251815,1748119844007,-852.92,0.00019506,2]
[362251816,1748119844018,-420.0,0.00019506,2]
[362251817,1748119844030,-512.52,0.00019506,2]
[362251818,1748119844050,-3769.84,0.00019506,2]
[362251819,1748119844065,-420.0,0.00019506,2]
[362251820,1748119844079,-420.0,0.00019506,2]
[362251821,1748119844091,-420.0,0.00019506,2]
[362251822,1748119844101,-859.68,0.00019506,2]
[362251823,1748119844111,-61518.15,0.00019506,2]
[362251824,1748119844122,-850.88,0.00019506,2]
[362251825,1748119844133,-1069.16,0.00019506,2]
[362251826,1748119844143,-420.0,0.00019506,2]
[362251827,1748119844155,-455.13,0.00019506,2]
[362251828,1748119844166,-420.0,0.00019506,2]
[362251829,1748119844179,-1817.39,0.00019506,2]
[362251830,1748119844192,-850.0,0.00019506,2]
[362251831,1748119844204,-667.87,0.00019506,2]
[362251832,1748119844215,-420.0,0.00019506,2]
[362251833,1748119844224,-420.0,0.00019506,2]
[362251834,1748119844236,-1493.3,0.00019506,2]
[362251835,1748119844246,-1764.72,0.00019506,2]
[362251836,1748119844256,-528.87,0.00019506,2]
[362251837,1748119844267,-420.0,0.00019506,2]
[362251838,1748119844279,-1446.21,0.00019506,2]
[362251839,1748119844292,-5483.03,0.00019506,2]
[362251840,1748119844305,-485.89,0.00019506,2]
[362251841,1748119844316,-739.18,0.00019506,2]
[362251842,1748119844327,-420.0,0.00019506,2]
[362251843,1748119844338,-420.0,0.00019506,2]
[362251844,1748119844349,-420.0,0.00019506,2]
[362251845,1748119844359,-420.0,0.00019506,2]
[362251846,1748119844370,-453.8,0.00019506,2]
[362251847,1748119844381,-1702.6,0.00019506,2]
[362251848,1748119844392,-420.0,0.00019506,2]
[362251849,1748119844402,-420.0,0.00019534,2]
[362251850,1748119844413,-420.0,0.00019534,2]
[362251851,1748119844424,-426.85,0.00019534,2]
[362251852,1748119844435,-642.39,0.00019534,2]
[362251853,1748119844448,-420.0,0.00019534,2]
[362251854,1748119844460,-725.46,0.00019534,2]
[362251855,1748119844472,-3315.14,0.00019534,2]
[362251856,1748119844485,-1884.18,0.00019534,2]
[362251857,1748119844498,-3932.93,0.00019534,2]
[362251858,1748119844511,-637.73,0.00019534,2]
[362251859,1748119844522,-1470.84,0.00019534,2]
[362251860,1748119844534,-852.92,0.00019534,2]
[362251861,1748119844546,-420.0,0.00019534,2]
[362251862,1748119844558,-512.52,0.00019534,2]
[362251863,1748119844569,-3769.84,0.00019534,2]
[362251864,1748119844580,-420.0,0.00019534,2]
[362251865,1748119844591,-420.0,0.00019534,2]
[362251866,1748119844602,-420.0,0.00019534,2]
[362251867,1748119844612,-859.68,0.00019534,2]
[362251868,1748119844624,-61518.15,0.00019534,2]
[362251869,1748119844635,-850.88,0.00019534,2]
[362251870,1748119844647,-1069.16,0.00019534,2]
[362251871,1748119844658,-153.03714386,0.00019534,2]
[362251872,1748119844671,-455.13,0.00019534,2]
[362251873,1748119844683,-420.0,0.00019534,2]
[362251874,1748119844694,-1817.39,0.00019534,2]
[362251875,1748119844707,-850.0,0.00019534,2]
[362251876,1748119844723,-667.87,0.00019534,2]
[362251877,1748119844736,-420.0,0.00019534,2]
[362251878,1748119844747,-420.0,0.00019534,2]
[362251879,1748119844759,-1493.3,0.00019534,2]
[362251880,1748119844770,-1764.72,0.00019534,2]
[362251881,1748119844780,-528.87,0.00019534,2]
[362251882,1748119844791,-420.0,0.00019534,2]
[362251883,1748119844802,-1446.21,0.00019534,2]
[362251884,1748119844815,-5483.03,0.00019534,2]
[362251885,1748119844826,-485.89,0.00019534,2]
[362251886,1748119844839,-739.18,0.00019534,2]
[362251887,1748119844851,-420.0,0.00019534,2]
[362251888,1748119844863,-420.0,0.00019534,2]
[362251889,1748119844873,-420.0,0.00019534,2]
[362251890,1748119844884,-453.8,0.00019534,2]
[362251891,1748119844895,-1702.6,0.00019534,2]
[362251892,1748119844906,-420.0,0.00019534,2]
[362251893,1748119844917,-3130.60806298,0.00019535,2]
[362251894,1748119844928,-401.30575916,0.00019553,2]
[362251895,1748119844939,-430.05930419,0.00019561,2]
[362251896,1748119844953,-420.0,0.00019561,2]
[362251897,1748119844964,-426.85,0.00019561,2]
[362251898,1748119844974,-642.39,0.00019561,2]
[362251899,1748119844986,-420.0,0.00019561,2]
[362251900,1748119844998,-725.46,0.00019561,2]
[362251901,1748119845010,-3315.14,0.00019561,2]
[362251902,1748119845021,-1884.18,0.00019561,2]
[362251903,1748119845032,-3932.93,0.00019561,2]
[362251904,1748119845042,-637.73,0.00019561,2]
[362251905,1748119845053,-1470.84,0.00019561,2]
[362251906,1748119845065,-852.92,0.00019561,2]
[362251907,1748119845076,-420.0,0.00019561,2]
[362251908,1748119845087,-512.52,0.00019561,2]
[362251909,1748119845099,-3769.84,0.00019561,2]
[362251910,1748119845110,-420.0,0.00019561,2]
[362251911,1748119845121,-420.0,0.00019561,2]
[362251912,1748119845132,-420.0,0.00019561,2]
[362251913,1748119845143,-859.68,0.00019561,2]
[362251914,1748119845155,-61518.15,0.00019561,2]
[362251916,1748119845166,-850.88,0.00019561,2]
[362251918,1748119845176,-1069.16,0.00019561,2]
[362251920,1748119845187,-455.13,0.00019561,2]
[362251921,1748119845198,-420.0,0.00019561,2]
[362251922,1748119845208,-1817.39,0.00019561,2]
[362251923,1748119845220,-850.0,0.00019561,2]
[362251924,1748119845231,-667.87,0.00019561,2]
[362251925,1748119845242,-420.0,0.00019561,2]
[362251926,1748119845253,-420.0,0.00019561,2]
[362251927,1748119845264,-1493.3,0.00019561,2]
[362251928,1748119845275,-1764.72,0.00019561,2]
[362251929,1748119845287,-528.87,0.00019561,2]
[362251930,1748119845298,-420.0,0.00019561,2]
[362251931,1748119845308,-1446.21,0.00019561,2]
[362251932,1748119845321,-5483.03,0.00019561,2]
[362251933,1748119845332,-485.89,0.00019561,2]
[362251934,1748119845343,-739.18,0.00019561,2]
[362251935,1748119845354,-420.0,0.00019561,2]
[362251936,1748119845365,-420.0,0.00019561,2]
[362251937,1748119845376,-420.0,0.00019561,2]
[362251938,1748119845386,-453.8,0.00019561,2]
[362251939,1748119845396,-1702.6,0.00019561,2]
[362251940,1748119845407,-420.0,0.00019561,2]
[362251941,1748119845418,-1746.657,0.00019589,2]
[362251942,1748119845429,-420.0,0.00019589,2]
[362251943,1748119845440,-426.85,0.00019589,2]
[362251944,1748119845451,-642.39,0.00019589,2]
[362251945,1748119845462,-420.0,0.00019589,2]
[362251946,1748119845475,-725.46,0.00019589,2]
[362251947,1748119845487,-3315.14,0.00019589,2]
[362251948,1748119845498,-1884.18,0.00019589,2]
[362251949,1748119845511,-3932.93,0.00019589,2]
[362251950,1748119845522,-637.73,0.00019589,2]
[362251951,1748119845534,-1470.84,0.00019589,2]
[362251952,1748119845545,-852.92,0.00019589,2]
[362251953,1748119845556,-420.0,0.00019589,2]
[362251954,1748119845569,-512.52,0.00019589,2]
[362251955,1748119845580,-3769.84,0.00019589,2]
[362251956,1748119845590,-420.0,0.00019589,2]
[362251957,1748119845601,-420.0,0.00019589,2]
[362251958,1748119845612,-420.0,0.00019589,2]
[362251959,1748119845623,-859.68,0.00019589,2]
[362251960,1748119845634,-61518.15,0.00019589,2]
[362251961,1748119845644,-850.88,0.00019589,2]
[362251962,1748119845655,-1069.16,0.00019589,2]
[362251963,1748119845668,-455.13,0.00019589,2]
[362251964,1748119845682,-420.0,0.00019589,2]
[362251965,1748119845692,-1817.39,0.00019589,2]
[362251966,1748119845704,-850.0,0.00019589,2]
[362251967,1748119845716,-667.87,0.00019589,2]
[362251968,1748119845733,-420.0,0.00019589,2]
[362251969,1748119845746,-420.0,0.00019589,2]
[362251970,1748119845757,-1493.3,0.00019589,2]
[362251971,1748119845769,-1764.72,0.00019589,2]
[362251972,1748119845780,-528.87,0.00019589,2]
[362251973,1748119845791,-420.0,0.00019589,2]
[362251974,1748119845804,-1446.21,0.00019589,2]
[362251975,1748119845816,-5483.03,0.00019589,2]
[362251976,1748119845827,-485.89,0.00019589,2]
[362251977,1748119845839,-739.18,0.00019589,2]
[362251978,1748119845851,-420.0,0.00019589,2]
[362251979,1748119845862,-420.0,0.00019589,2]
[362251980,1748119845875,-420.0,0.00019589,2]
[362251981,1748119845887,-453.8,0.00019589,2]
[362251982,1748119845899,-1702.6,0.00019589,2]
[362251983,1748119845911,-420.0,0.00019589,2]
[362251984,1748119845923,-315.44413,0.00019599,2]
[362251985,1748119845933,-500.0,0.00019599,2]
[362251986,1748119845944,-5510.78582357,0.00019602,2]
[362251987,1748119845955,-426.85,0.00019616,2]
[362251988,1748119845965,-642.39,0.00019616,2]
[362251989,1748119845976,-420.0,0.00019616,2]
[362251990,1748119845987,-725.46,0.00019616,2]
[362251991,1748119845998,-3315.14,0.00019616,2]
[362251992,1748119846008,-1884.18,0.00019616,2]
[362251993,1748119846018,-3932.93,0.00019616,2]
[362251994,1748119846029,-637.73,0.00019616,2]
[362251995,1748119846040,-1470.84,0.00019616,2]
[362251996,1748119846052,-852.92,0.00019616,2]
[362251997,1748119846065,-420.0,0.00019616,2]
[362251999,1748119846075,-512.52,0.00019616,2]
[362252000,1748119846086,-3769.84,0.00019616,2]
[362252001,1748119846098,-420.0,0.00019616,2]
[362252002,1748119846108,-420.0,0.00019616,2]
[362252003,1748119846119,-420.0,0.00019616,2]
[362252004,1748119846130,-859.68,0.00019616,2]
[362252005,1748119846140,-61518.15,0.00019616,2]
[362252006,1748119846455,-850.88,0.00019616,2]
[362252007,1748119846514,-1069.16,0.00019616,2]
[362252008,1748119846532,-455.13,0.00019616,2]
[362252009,1748119846548,-420.0,0.00019616,2]
[362252010,1748119846559,-1817.39,0.00019616,2]
[362252011,1748119846569,-850.0,0.00019616,2]
[362252012,1748119846580,-667.87,0.00019616,2]
[362252013,1748119846590,-420.0,0.00019616,2]
[362252014,1748119846599,-420.0,0.00019616,2]
[362252015,1748119846608,-1493.3,0.00019616,2]
[362252016,1748119846619,-1764.72,0.00019616,2]
[362252017,1748119846629,-528.87,0.00019616,2]
[362252018,1748119846638,-212.70348057,0.00019616,2]
[362252019,1748119846648,-1446.21,0.00019616,2]
[362252020,1748119846658,-5483.03,0.00019616,2]
[362252021,1748119846668,-485.89,0.00019616,2]
[362252022,1748119846678,-739.18,0.00019616,2]
[362252023,1748119846688,-367.26746165,0.00019616,2]
[362252024,1748119846697,-420.0,0.00019616,2]
[362252025,1748119846707,-420.0,0.00019616,2]
[362252026,1748119846717,-453.8,0.00019616,2]
[362252027,1748119846730,-1702.6,0.00019616,2]
[362252028,1748119846740,-420.0,0.00019616,2]
[362252029,1748119846750,-3130.60806298,0.00019626,2]
[362252030,1748119846760,-401.30575916,0.0001964,2]
[362252031,1748119846770,-426.85,0.00019643,2]
[362252032,1748119846779,-642.39,0.00019643,2]
[362252033,1748119846789,-420.0,0.00019643,2]
[362252034,1748119846801,-725.46,0.00019643,2]
[362252035,1748119846811,-3315.14,0.00019643,2]
[362252036,1748119846823,-1884.18,0.00019643,2]
[362252037,1748119846832,-3932.93,0.00019643,2]
[362252038,1748119846841,-637.73,0.00019643,2]
[362252039,1748119846851,-1470.84,0.00019643,2]
[362252040,1748119846863,-852.92,0.00019643,2]
[362252041,1748119846872,-222.19,0.00019643,2]
[362252042,1748119846883,-512.52,0.00019643,2]
[362252043,1748119846893,-3769.84,0.00019643,2]
[362252044,1748119846904,-420.0,0.00019643,2]
[362252045,1748119846914,-420.0,0.00019643,2]
[362252046,1748119846925,-420.0,0.00019643,2]
[362252047,1748119846934,-859.68,0.00019643,2]
[362252048,1748119846944,-61518.15,0.00019643,2]
[362252049,1748119846953,-850.88,0.00019643,2]
[362252050,1748119846964,-1069.16,0.00019643,2]
[362252051,1748119846974,-455.13,0.00019643,2]
[362252052,1748119846984,-420.0,0.00019643,2]
[362252053,1748119846994,-1817.39,0.00019643,2]
[362252054,1748119847004,-850.0,0.00019643,2]
[362252055,1748119847014,-667.87,0.00019643,2]
[362252056,1748119847024,-557.03494792,0.00019643,2]
[362252057,1748119847034,-420.0,0.00019643,2]
[362252058,1748119847043,-1493.3,0.00019643,2]
[362252059,1748119847053,-1764.72,0.00019643,2]
[362252060,1748119847066,-528.87,0.00019643,2]
[362252061,1748119847075,-1446.21,0.00019643,2]
[362252062,1748119847085,-5483.03,0.00019643,2]
[362252063,1748119847095,-485.89,0.00019643,2]
[362252064,1748119847105,-739.18,0.00019643,2]
[362252065,1748119847114,-420.0,0.00019643,2]
[362252066,1748119847124,-420.0,0.00019643,2]
[362252067,1748119847134,-453.8,0.00019643,2]
[362252068,1748119847144,-1702.6,0.00019643,2]
[362252069,1748119847154,-420.0,0.00019643,2]
[362252070,1748119847163,-252.0,0.00019644,2]
[362252071,1748119847173,-426.85,0.00019671,2]
[362252072,1748119847183,-642.39,0.00019671,2]
[362252073,1748119847194,-420.0,0.00019671,2]
[362252074,1748119847203,-725.46,0.00019671,2]
[362252075,1748119847213,-3315.14,0.00019671,2]
[362252076,1748119847223,-1884.18,0.00019671,2]
[362252077,1748119847233,-3932.93,0.00019671,2]
[362252078,1748119847244,-637.73,0.00019671,2]